Cogmind - Beta 13 @@@ ROGUE MODE // 2024.06.10 @ 00:51:34 Player: Jelly Donuts Result: Destroyed by L-31 Rogue with Katana Performance ------------- Evolutions (2) 1000 Regions Visited (5) 1000 Robots Destroyed (38) 190 Value Destroyed (1217) 1217 Prototype IDs (6) 120 Alien Tech Used (0) 0 Bonus (300) 300 TOTAL SCORE: 3827 Bonus ------- Aligned with FarCom 300 Cogmind --------- Core Integrity 0/550 Matter 271/300 Energy 50/100 System Corruption 1% Temperature Cool (0) Movement Core (200) Ox3 Location -8/Materials Parts ------- > --- POWER (1) -------- (None) > --- PROPULSION (2) --- (None) > --- UTILITY (5) ------ Improved Heat Sink Improved Signal Interpreter 0b10 Alert Chip > --- WEAPON (3) ------- Improved EM Pulse Cannon Spear > --- INVENTORY (5) ---- Heat Sink Particle Gun Peak State ------------ > --- POWER ------------ Light Nuclear Core > --- PROPULSION ------- Carbon-fiber Leg Carbon-fiber Leg > --- UTILITY ---------- Heat Sink Heat Sink Improved Heat Sink Signal Interpreter 0b10 Alert Chip > --- WEAPON ----------- Firepult Spear > --- INVENTORY -------- Light Ion Engine Compact Wheel [Rating: 45] Favorites ----------- Power Light Nuclear Core Engine Light Ion Engine Power Core Light Nuclear Core Propulsion Compact Wheel Leg Carbon-fiber Leg Wheel Compact Wheel Utility Signal Interpreter Device Heat Sink Storage Small Storage Unit Processor Signal Interpreter Protection Light Armor Plating Weapon Firepult Energy Gun Lightning Gun Energy Cannon Firepult Ballistic Gun Assault Rifle Launcher Grenade Launcher Piercing Weapon Spear Build | -11 -10 -10 -10 -9 -8 ------- Run | Yrd Mat Min Exi Min Mat Slots Evolved 4 | . . . . . 4 Power . | . . . . . . Propulsion . | . . . . . . Utility 3 | . . . . . 3 Weapon 1 | . . . . . 1 Parts Attached 59 | 9 6 5 4 3 32 Power 6 | 1 1 . 1 . 3 Engine 2 | 1 . . . . 1 Core 4 | . 1 . 1 . 2 Reactor . | . . . . . . Propulsion 12 | 3 1 . . 1 7 Treads . | . . . . . . Leg 5 | . . . . . 5 Wheel 7 | 3 1 . . 1 2 Hover . | . . . . . . Flight . | . . . . . . Utility 18 | 3 1 3 2 . 9 Device 12 | 2 . 3 1 . 6 Storage 1 | 1 . . . . . Processor 3 | . 1 . 1 . 1 Hackware . | . . . . . . Protection 2 | . . . . . 2 Artifact . | . . . . . . Weapon 23 | 2 3 2 1 2 13 Energy Gun 3 | . . . . . 3 Energy Cannon 6 | . . . 1 . 5 Ballistic Gun 6 | 2 1 1 . 1 1 Ballistic Cannon . | . . . . . . Launcher 5 | . 2 1 . 1 1 Special Weapon . | . . . . . . Impact Weapon . | . . . . . . Slashing Weapon . | . . . . . . Piercing Weapon 3 | . . . . . 3 Special Melee Weapon . | . . . . . . Unidentified Prototypes 2 | . . . 2 . . Parts Lost 16 | . . . . . 16 Power 1 | . . . . . 1 Propulsion 5 | . . . . . 5 Utility 6 | . . . . . 6 Weapon 4 | . . . . . 4 Highest Loss Streak 6 | . . . . . 6 To Critical Strikes 1 | . . . . . 1 Average Slot Usage (%) 88 | . 100 100 91 90 84 Engine 3 | . 6 . . . 4 Core 8 | . 8 14 14 14 3 Leg 2 | . . . . . 4 Wheel 17 | . 28 28 28 28 8 Device 13 | . 14 14 6 . 18 Processor 19 | . 6 14 21 28 18 Protection 3 | . . . . . 5 Energy Gun 1 | . . . . . 3 Energy Cannon 6 | . . . 7 8 6 Ballistic Gun 6 | . 26 25 6 5 2 Launcher 2 | . 2 2 6 5 . Piercing Weapon 3 | . . . . . 7 Naked Turns . | . . . . . . Heaviest Build 32 | 13 15 12 27 27 32 Greatest Support 32 | 32 32 26 26 26 30 Greatest Overweight (x) 4 | . . . 1 1 4 Average Overweight (x) . | . . . . . . Largest Inventory Capacity 8 | 8 8 5 5 5 5 Average Capacity 5 | 7 6 5 5 5 5 Most Carried 7 | 6 7 5 5 5 5 Average Carried 3 | 2 5 5 4 4 2 Final Capacity 8 | 8 5 5 5 5 5 Final Carried 6 | 6 5 5 5 4 2 Class Distribution -------------------- 51% | Mutant 33% | Scavenger-Mutant 8% | Scavenger-Skirmisher 4% | Assassin Dominant Class ---------------- Mutant | -10/Materials Mutant | -10/Mines Mutant | -10/Exiles Mutant | -9/Mines Scavenger-Mutant | -8/Materials Resources | -11 -10 -10 -10 -9 -8 ----------- Run | Yrd Mat Min Exi Min Mat Matter Collected 1057 | 321 115 49 . . 572 Remotely . | . . . . . . Salvage Created 1312 | 125 73 49 . . 1065 Parts 87 | 14 7 7 . . 59 Haulers Intercepted . | . . . . . . Recyclers Shooed 2 | 1 . . . . 1 Parts Field Recycled . | . . . . . . Retrieved Matter . | . . . . . . Parts Self-Destructed . | . . . . . . Prevented . | . . . . . . Kills | -11 -10 -10 -10 -9 -8 ------- Run | Yrd Mat Min Exi Min Mat Combat Hostiles Destroyed 24 | . 2 3 . . 19 Melee 6 | . . . . . 6 Guns 8 | . 1 3 . . 4 Cannons 2 | . . . . . 2 AOE 5 | . 1 . . . 4 Classes Destroyed 9 | 2 2 1 . . 4 Worker 2 | . . . . . 2 Builder 5 | . . . . . 5 Tunneler 4 | 4 . . . . . Recycler 1 | 1 . . . . . Watcher 2 | . 1 . . . 1 Swarmer 3 | . . 3 . . . Grunt 15 | . 2 . . . 13 Sentry 5 | . . . . . 5 Hunter 1 | . . . . . 1 Best Kill Streak 8 | 1 3 3 . . 8 Combat Bots Only 4 | . 2 3 . . 4 Max Kills in Single Turn 2 | 1 1 1 . . 2 Gunslinging . | . . . . . . Exploded 2 | . 1 . . . 2 Melee 1 | . . . . . 1 Uniques/NPCs Destroyed . | . . . . . . Combat | -11 -10 -10 -10 -9 -8 -------- Run | Yrd Mat Min Exi Min Mat Hostile Shots Fired 146 | . 5 12 . . 129 Missed 31 | . 3 2 . . 26 Damage Taken 1957 | . 25 70 . . 1862 Core 602 | . 13 10 . . 579 Absorbed by Shields 13 | . . 13 . . . Core Remaining (%) 95 | 100 . . . 90 . Volleys Fired 59 | 15 6 6 . . 32 Largest 3 | 2 2 2 . . 3 Hottest 273 | 40 50 40 . . 273 Shots Fired 115 | 30 12 12 . . 61 Gun 95 | 30 10 12 . . 43 Cannon 10 | . . . . . 10 Launcher 10 | . 2 . . . 8 Special . | . . . . . . Kinetic 71 | 30 10 12 . . 19 Thermal 10 | . . . . . 10 Explosive 10 | . 2 . . . 8 Electromagnetic 24 | . . . . . 24 Robot Hit Streak 13 | 6 4 3 . . 13 Robot Miss Streak 5 | 2 3 3 . . 5 Penetration Max 1 | . . . . . 1 Secondary Targets 1 | . . . . . 1 Max Gunslinging Chain 1 | . . . . . 1 Shots Hit Robots 90 | 18 7 6 . . 59 Core Hits 56 | 6 5 3 . . 42 Critical Kills . | . . . . . . Critical Parts Destroyed . | . . . . . . Critical Strikes 2 | . . . . . 2 Impale 2 | . . . . . 2 Melee Attacks 27 | . . . . . 27 Impact . | . . . . . . Slashing . | . . . . . . Piercing 27 | . . . . . 27 Sneak Attacks 4 | . . . . . 4 Combat Hostiles . | . . . . . . Follow-up Attacks . | . . . . . . Damage Inflicted 2799 | 219 218 80 . . 2282 Guns 1057 | 219 93 80 . . 665 Cannons 243 | . . . . . 243 Explosions 892 | . 125 . . . 767 Melee 607 | . . . . . 607 Ramming . | . . . . . . Kinetic 691 | 219 93 80 . . 299 Thermal 592 | . . . . . 592 Explosive 462 | . 125 . . . 337 Electromagnetic 447 | . . . . . 447 Impact . | . . . . . . Slashing . | . . . . . . Piercing 607 | . . . . . 607 Highest Corruption 1 | . . . . . 1 Average Corruption 1 | . . . . . 1 Corruption Purged . | . . . . . . Corruption Blocked . | . . . . . . Effects 11 | . . . . . 11 Message Errors 1 | . . . . . 1 Matter Fused 5 | . . . . . 5 Heat Flow Errors 2 | . . . . . 2 Energy Discharges 1 | . . . . . 1 Data Loss (minor) 1 | . . . . . 1 Data Loss (major) 1 | . . . . . 1 Overload Shots . | . . . . . . Overflow Damage 61 | . . . . . 61 Projectiles . | . . . . . . Explosions 26 | . . . . . 26 Melee 35 | . . . . . 35 Knockbacks . | . . . . . . Impact . | . . . . . . Kinetic . | . . . . . . Secondary . | . . . . . . Self-Inflicted Damage 75 | . . . . . 75 Shots 7 | . . . . . 7 Rammed . | . . . . . . Targets Rammed . | . . . . . . Kicked . | . . . . . . Crushed . | . . . . . . Highest Temperature 431 | . 2 . . . 431 Average Temperature 120 | . 2 . . . 123 Received Heat Transfer 735 | . 15 . . . 720 Siege Activations . | . . . . . . Robots Corrupted . | . . . . . . Combat Hostiles . | . . . . . . Parts Fried . | . . . . . . Impact Corruptions . | . . . . . . Robots Melted 3 | . . . . . 3 Combat Hostiles 3 | . . . . . 3 Parts Melted 5 | . . . . . 5 Heat Transferred 2531 | . . . . . 2531 Parts Sabotaged . | . . . . . . Parts Stolen . | . . . . . . Parts Stripped . | . . . . . . Power Chain Reactions 1 | . . . . . 1 Alert | -11 -10 -10 -10 -9 -8 ------- Run | Yrd Mat Min Exi Min Mat Peak Influence 244 | 25 89 104 . . 244 Initial 34 | . 16 34 . . . Average 56 | 12 66 86 . . 66 Maximum Alert Level 1 | . . . . . 1 Low Security (%) 89 | 100 100 100 . 100 83 Level 1 10 | . . . . . 16 Level 2 . | . . . . . . Level 3 . | . . . . . . Level 4 . | . . . . . . Level 5 . | . . . . . . High Security . | . . . . . . Max Security . | . . . . . . Squads Dispatched 10 | . 1 . . . 9 Investigation 3 | . 1 . . . 2 Extermination . | . . . . . . Reinforcement 3 | . . . . . 3 Assault 1 | . . . . . 1 Garrison 3 | . . . . . 3 Intercept . | . . . . . . Searches Triggered . | . . . . . . Construction Impeded 2 | . . . . . 2 Haulers Reinforced . | . . . . . . Active Scanning Responses . | . . . . . . Cargo Convoy Interrupts . | . . . . . . Stealth | -11 -10 -10 -10 -9 -8 --------- Run | Yrd Mat Min Exi Min Mat Distress Signals 1 | . . . . . 1 Communications Jammed . | . . . . . . Distress Signals . | . . . . . . Times Spotted 41 | . 4 3 . . 34 Peak Tracking Total 6 | . 2 3 . . 6 Tactical Retreats 2 | . . . . . 2 Traps | -11 -10 -10 -10 -9 -8 ------- Run | Yrd Mat Min Exi Min Mat Traps Triggered . | . . . . . . Indirectly . | . . . . . . Trap Hack Attempts . | . . . . . . Triggered . | . . . . . . Disarmed . | . . . . . . Reprogrammed . | . . . . . . Reused . | . . . . . . Traps Extracted . | . . . . . . Installed . | . . . . . . Triggered . | . . . . . . Machines | -11 -10 -10 -10 -9 -8 ---------- Run | Yrd Mat Min Exi Min Mat Machines Disabled 2 | . . . . . 2 Max in Single Turn 1 | . . . . . 1 Garrison Access 1 | . . . . . 1 Machines Repaired . | . . . . . . Machines Dismantled . | . . . . . . Machines Sabotaged . | . . . . . . Overloaded Fab Kills . | . . . . . . Hacking | -11 -10 -10 -10 -9 -8 --------- Run | Yrd Mat Min Exi Min Mat Machines Accessed 8 | . 2 . 4 . 2 Terminals 3 | . 2 . . . 1 Fabricators . | . . . . . . Repair Stations . | . . . . . . Recycling Units 1 | . . . . . 1 Scanalyzers . | . . . . . . Garrison Access . | . . . . . . Total Hacks 63 | . 8 . 49 . 6 Successful 57 | . 4 . 49 . 4 Failed 6 | . 4 . . . 2 Catastrophic . | . . . . . . Database Lockouts . | . . . . . . Manual 2 | . . . 2 . . Terminals 11 | . 8 . . . 3 Fabricators . | . . . . . . Repair Stations . | . . . . . . Recycling Units 3 | . . . . . 3 Scanalyzers . | . . . . . . Garrison Access . | . . . . . . Terminal Hacks 56 | . 4 . 49 . 3 Record 49 | . . . 49 . . Prototype ID Bank 2 | . 2 . . . . Alert Level 1 | . . . . . 1 Unreport Threat 2 | . . . . . 2 Locate Traps 1 | . 1 . . . . Maintenance Status 1 | . 1 . . . . Fabricator Hacks . | . . . . . . Repair Station Hacks . | . . . . . . Recycling Unit Hacks 1 | . . . . . 1 Report Inventory 1 | . . . . . 1 Scanalyzer . | . . . . . . Garrison Access Hacks . | . . . . . . Unauthorized Hacks . | . . . . . . Terminals . | . . . . . . Fabricators . | . . . . . . Repair Stations . | . . . . . . Recycling Units . | . . . . . . Scanalyzers . | . . . . . . Garrison Access . | . . . . . . Data Cores Recovered . | . . . . . . Used . | . . . . . . Hacking Detections 4 | . 2 . . . 2 Full Trace Events 3 | . 1 . . . 2 Feedback Events 1 | . . . . . 1 Corruption 1 | . . . . . 1 Feedback Blocked . | . . . . . . Robot Schematics Acquired . | . . . . . . Robots Built . | . . . . . . Authchips . | . . . . . . Time . | . . . . . . Total Robot Build Rating . | . . . . . . Part Schematics Acquired . | . . . . . . Parts Built . | . . . . . . Authchips . | . . . . . . Time . | . . . . . . Total Part Build Rating . | . . . . . . Parts Repaired . | . . . . . . Time . | . . . . . . Parts Recycled . | . . . . . . Recycled Matter . | . . . . . . Retrieved Matter . | . . . . . . Retrieved Components . | . . . . . . Parts Scanalyzed . | . . . . . . Part Schematics Acquired . | . . . . . . Parts Damaged . | . . . . . . Bothacking | -11 -10 -10 -10 -9 -8 ------------ Run | Yrd Mat Min Exi Min Mat Used RIF Installer . | . . . . . . Robots Hacked . | . . . . . . Non-combat . | . . . . . . Combat . | . . . . . . Robot Hacks Applied . | . . . . . . Relay Couplers Released 3 | . . . . . 3 Machine Destruction 3 | . . . . . 3 Fabnet Peak Effective % . | . . . . . . Robots Rewired . | . . . . . . Allies Hacked . | . . . . . . Hacks Repelled . | . . . . . . Allies | -11 -10 -10 -10 -9 -8 -------- Run | Yrd Mat Min Exi Min Mat Total Allies . | . . . . . . Largest Group . | . . . . . . Highest-Rated Group . | . . . . . . Highest-Rated Ally . | . . . . . . Total Orders . | . . . . . . Ally Attacks . | . . . . . . Total Damage . | . . . . . . Kills . | . . . . . . Allies Corrupted . | . . . . . . Allies Melted . | . . . . . . Intel | -11 -10 -10 -10 -9 -8 ------- Run | Yrd Mat Min Exi Min Mat Robot Analysis Total . | . . . . . . Derelict Logs Recovered . | . . . . . . Drone Launches . | . . . . . . Drone Recoveries . | . . . . . . Exploration | -11 -10 -10 -10 -9 -8 ------------- Run | Yrd Mat Min Exi Min Mat Turns Passed 2732 | 179 149 147 647 237 1373 Spaces Moved 1560 | 118 122 135 642 230 313 Core 11 | 9 . . . . 2 Treads . | . . . . . . Legs 59 | . . . . . 59 Wheels 1490 | 109 122 135 642 230 252 Hover . | . . . . . . Flight . | . . . . . . Fastest Speed 50 | 50 90 90 90 90 90 Average Speed 98 | 92 94 90 97 98 109 Slowest Speed 250 | 100 100 90 105 105 250 Overloaded Moves . | . . . . . . Propulsion Burnouts . | . . . . . . Robots Hopped . | . . . . . . Cave-ins Triggered . | . . . . . . Exploration Rate (%) 31 | 6 20 29 84 37 15 Regions Visited 5 Branch Regions 3 Pre-discovered Areas 1 | . . . 1 . . Known Exits Taken 4 | . 1 1 1 1 . Unknown Exits Taken 1 | 1 . . . . . Scrap Searched . | . . . . . . Spaces Dug 4 | . . . . . 4 Terrain Destroyed 92 | . 8 . . . 84 Melee 4 | . . . . . 4 Projectile . | . . . . . . AOE 88 | . 8 . . . 80 Terrain Rammed . | . . . . . . Walls Destroyed . | . . . . . . Machines Disabled . | . . . . . . Actions | -11 -10 -10 -10 -9 -8 --------- Run | Yrd Mat Min Exi Min Mat Total 2598 | 156 144 145 665 241 1247 Wait 815 | . . . 2 . 813 Move 1555 | 117 121 134 641 229 313 Hop . | . . . . . . Pick Up 52 | 14 5 . 8 4 21 Fast Attach . | . . . . . . Attach 33 | 7 . . 2 2 22 Detach 6 | . . . 1 . 5 Swap 26 | 2 6 5 2 1 10 Drop 25 | 1 6 . 9 5 4 Fire 59 | 15 6 6 . . 32 Melee 27 | . . . . . 27 Ram . | . . . . . . Kick . | . . . . . . Crush . | . . . . . . Escape Stasis . | . . . . . . Rewire . | . . . . . . Trap . | . . . . . . Miscellaneous . | . . . . . . Route ------- -11/Scrapyard -10/Materials -10/Mines -10/Exiles -9/Mines -8/Materials History --------- Turn | Location | Event 15 | -11/Scrapyard | Discovered new exit (range 16) 180 | -11/Scrapyard | Entered Materials 280 | -10/Materials | Discovered new exit (range 7) 301 | -10/Materials | Build established: Mutant 327 | -10/Materials | Identified exit to Mines 329 | -10/Materials | Entered Mines 339 | -10/Mines | Met a Derelict bent on vengeance 466 | -10/Mines | Deemed a non-threat by the Exiles lab entrance 467 | -10/Mines | Discovered new exit (range 5) 471 | -10/Mines | Identified exit to Exiles 476 | -10/Mines | Entered Exiles 497 | -10/Exiles | Discovered new exit (range 14) 508 | -10/Exiles | Identified exit to Mines 527 | -10/Exiles | Met 8R-AWN 543 | -10/Exiles | Met EX-HEX 587 | -10/Exiles | Met EX-DEC 609 | -10/Exiles | Learned location of Zion (-6) 642 | -10/Exiles | Met EX-BIN 709 | -10/Exiles | Aligned with FarCom system 709 | -10/Exiles | Given EX-Vault access code 752 | -10/Exiles | Opened EX-Vault 755 | -10/Exiles | Found Prototype Processor 756 | -10/Exiles | Identified 0b10 Alert Chip 760 | -10/Exiles | Found Deploy-a-Sentry 763 | -10/Exiles | Found Prototype Energy Cannon 765 | -10/Exiles | Identified Firepult 794 | -10/Exiles | Warned to stay clear of 0b10 Research branches 898 | -10/Exiles | Visited The Gauntlet 1123 | -10/Exiles | Stole two prototypes: 0b10 Alert Chip, Firepult 1123 | -10/Exiles | Entered Mines 1303 | -9/Mines | Discovered new exit (range 13) 1312 | -9/Mines | Identified exit to Materials 1354 | -9/Mines | Assembled infested the area 1359 | -9/Mines | Assisted by a Guerilla fighting off Assembled 1360 | -9/Mines | Entered Materials 1360 | -8/Materials | Evolved 4 slots: Utility x3, Weapon x1 1408 | -8/Materials | Garrison activated, responded to threat 1615 | -8/Materials | Lost 6 parts (1p2n1u2w) 1912 | -8/Materials | Build established: Scavenger-Mutant 2514 | -8/Materials | Lost 3 parts (1n1u1w) 2721 | -8/Materials | Core integrity fell below 50% 2731 | -8/Materials | Core integrity fell below 20% 2733 | -8/Materials | Destroyed by L-31 Rogue with Katana Last Messages --------------- Lightning Gun severed. Slug penetrates L-31 Rogue. Lightning Gun destroyed. U-05 Engineer lays Concrete. R-06 Scavenger collects Wheel. Critical hit (Burn: +37). U-05 Engineer lays Concrete. Lgt. Armor Plating destroyed. Lgt. Nuclear Core severed. R-06 Scavenger collects Sml. Matter Pod. Gauss Rifle severed. U-05 Engineer builds a Door. K-01 Serf collects debris. Carbon-fiber Leg destroyed. U-05 Engineer lays Concrete. K-01 Serf collects debris. Imp. Heat Sink destroyed. U-05 Engineer lays Concrete. Carbon-fiber Leg destroyed. U-05 Engineer builds a Wall. Map ----- +----------------------------------------------------+ | ?????????????????????????????????????????????????? | | ?????????????????????????????????????????????????? | | ?????????????????????????????????????????????????? | | ?????????????????????????????????????????????????? | | ?????????????????????????????????????????????????? | | ?????????????????????????????????????????????????? | | ?????????????????????????????????????????????????? | | ?????????????????????????????????????????????????? | | ?????????????????????????????????????????????????? | | ?????????????????????????????????????????????????? | | ?????????????????????????????????????????????????? | | ???????????????Y?????????????????????????????????? | | ?????????????????????????????????????????????????? | | ????????????????????????########?????????????????? | | ???????????????????? ???# #?????????????????? | | ???????????????????# ???# #?????????????????? | | ???????????????????# ???# """ #?????????????????? | | ???????????????????# ???# """ #?????????????????? | | ???????????????????# ???# """ #?????????????????? | | ???????????????????# ???# #????????? ???????? | | ??????????????###### ##?# #????????? ???????? | | ??????????????? #?# ""#??????#?# #??????? | | ???????????????? #?# i ""#? ??? #? ??????? | | ??????????????ss? #?# T"## ? ## T ??????? | | ???????????s??????# #?#wlg "## T# ??????? | | ????????????????### ###@g % ## #?# #??????? | | ????????????????# ##lk##### #?# #??????? | | ????????????????# u ### ##?????? | | ????????????????# [! * ## #?????? | | ?????????g??????# = ! ===% a T #?????? | | ????????????????# * ! % ## #?###?? | | ????????????????# % % r ##+#### #?? | | ????????????????# ###+#######+### " #?? | | ????????????????### ###???????????### ! ###?? | | ??????????????????# #?????????????# #%! " #???? | | ??????????????????# #???????????????#% G" #???? | | ?????????????"??#?# #??? ??"????"???#!! " #???? | | ?????????????????## #??? ???????????#!=| #???? | | ??????????????????# ###?? ????????##+######???? | | ?????????????????## #??????????????##%##???????? | | ???????????? ?#?# ##????#????????##%##???????? | | ??????????? ?? ???# ######????#######+##???????? | | ???????? ??????#### ## ]]#????# #???????? | | ??????????? ????## | #????# """ #???????? | | ??????#???#?????## ! ###### """ #???????? | | ????????????#???## [[## # """ #???????? | | ???????????##???## ![= ]/## + #???????? | | ????????##?#????## %= /## # "" #???????? | | ????????????????####[######## # "" #???????? | | ???????????#????####%# # # # "" ##??????? | +----------------------------------------------------+ Best States ------------- Heat Dissipation 69 Energy Generation 14 Energy Capacity 160 Matter Stores 300 Matter Capacity 300 Sight Range 16 Robot Scan Range 15 Terrain Scan Range 16 Terrain Scan Density 10 Armor Coverage 150 Evasion (%) 55 Item Schematics ----------------- None Robot Schematics ------------------ None Fabricated ------------ Nothing Alien Tech Used ----------------- None Achievements -------------- Please Form A Line Tourist Challenges ------------ None Game ------ Seed DecoyAuthchipMatrix Manual? 0 Play Time 01:06:40 Cumulative 7.7 hours Start 2024.06.09 @ 23:41:52 End 2024.06.10 @ 00:51:34 Sessions 1 Manual Loads 0 Difficulty Rogue Special Mode None Game No. 6 Rogue 6 Adventurer 0 Explorer 0 Win Type - Total 0 Types 0/0/0/0/0/0/0/0/0 Lore% 14 Gallery% 9 Achievement% 8 Wizard Run 0 Options --------- Layout 1 ASCII 0 Keyboard 0 Movement Numpad Keybinds 0 Fullscreen 1 Font 24/Smallcaps Map View 50x35 Zoom Use 0% Tactical HUD 0 Map Filters NONE Filters NONE Steam 1 RUN: 571cc749-125c-4d22-a6dc-4dc106adb38b